[Event "Schack-SM 2022: Sverigemastarklassen"]
[Site "Fyrishov, Idrottsgatan 2, Uppsala, Sweden"]
[Date "2022.07.08"]
[Round "7.4"]
[White "Seo, Jung Min"]
[Black "Hector, Jonny"]
[Result "1/2-1/2"]
[TimeControl "90 minutes for 40 moves + 30 minutes for the rest of the game + 30 seconds per move from move one."]
[WhiteTitle "IM"]
[BlackTitle "GM"]
[WhiteFideId "1734687"]
[BlackFideId "1700090"]
[WhiteElo "2492"]
[BlackElo "2441"]

1. e4 {[%clk 01:30:58]} {[%emt 00:00:02]} e5 {[%clk 01:30:51]} {[%emt
00:00:09]} 2. Nf3 {[%clk 01:31:21]} {[%emt 00:00:07]} Nc6 {[%clk 01:31:13]}
{[%emt 00:00:08]} 3. Bb5 {[%clk 01:31:49]} {[%emt 00:00:03]} a6 {[%clk
01:31:11]} {[%emt 00:00:31]} 4. Ba4 {[%clk 01:32:16]} {[%emt 00:00:03]} Nf6
{[%clk 01:31:20]} {[%emt 00:00:20]} 5. O-O {[%clk 01:32:23]} {[%emt 00:00:25]}
Nxe4 {[%clk 01:31:23]} {[%emt 00:00:26]} 6. d4 {[%clk 01:32:37]} {[%emt
00:00:17]} Be7 {[%clk 01:31:08]} {[%emt 00:00:44]} 7. Re1 {[%clk 01:29:32]}
{[%emt 00:03:35]} b5 {[%clk 01:30:40]} {[%emt 00:00:58]} 8. Rxe4 {[%clk
01:29:38]} {[%emt 00:00:25]} d5 {[%clk 01:30:57]} {[%emt 00:00:11]} 9. Nxe5
{[%clk 01:29:47]} {[%emt 00:00:23]} Nxe5 {[%clk 01:31:14]} {[%emt 00:00:12]} 10.
Rxe5 {[%clk 01:30:15]} {[%emt 00:00:02]} bxa4 {[%clk 01:31:32]} {[%emt
00:00:12]} 11. b3 {[%clk 01:14:51]} {[%emt 00:15:55]} O-O {[%clk 01:30:48]}
{[%emt 00:01:13]} 12. Ba3 {[%clk 01:12:29]} {[%emt 00:02:53]} Bxa3 {[%clk
01:30:21]} {[%emt 00:00:55]} 13. Nxa3 {[%clk 01:12:56]} {[%emt 00:00:04]} Qd6
{[%clk 01:29:46]} {[%emt 00:01:05]} 14. Nb1 {[%clk 01:13:12]} {[%emt 00:00:15]}
axb3 {[%clk 01:23:23]} {[%emt 00:06:52]} 15. axb3 {[%clk 01:13:27]} {[%emt
00:00:15]} c5 {[%clk 01:23:28]} {[%emt 00:00:25]} 16. Nc3 {[%clk 01:12:37]}
{[%emt 00:01:21]} Bb7 {[%clk 01:19:11]} {[%emt 00:04:46]} 17. Na4 {[%clk
01:09:09]} {[%emt 00:03:59]} Rac8 {[%clk 01:04:44]} {[%emt 00:14:56]} 18. Re2
{[%clk 01:07:22]} {[%emt 00:02:17]} cxd4 {[%clk 00:57:00]} {[%emt 00:08:14]} 19.
Qxd4 {[%clk 01:06:27]} {[%emt 00:01:26]} Rfe8 {[%clk 00:50:21]} {[%emt
00:07:08]} 20. Rxe8+ {[%clk 01:00:43]} {[%emt 00:06:14]} Rxe8 {[%clk 00:50:48]}
{[%emt 00:00:03]} 21. h3 {[%clk 01:00:38]} {[%emt 00:00:35]} h5 {[%clk
00:38:49]} {[%emt 00:12:29]} 22. Nc5 {[%clk 00:56:02]} {[%emt 00:05:05]} Bc8
{[%clk 00:33:21]} {[%emt 00:06:00]} 23. c4 {[%clk 00:55:27]} {[%emt 00:01:05]}
Re5 {[%clk 00:32:52]} {[%emt 00:00:57]} 24. Nd3 {[%clk 00:50:23]} {[%emt
00:05:36]} Re4 {[%clk 00:32:24]} {[%emt 00:00:57]} 25. Qxd5 {[%clk 00:50:48]}
{[%emt 00:00:06]} Qxd5 {[%clk 00:32:33]} {[%emt 00:00:20]} 26. cxd5 {[%clk
00:51:15]} {[%emt 00:00:04]} Rd4 {[%clk 00:32:48]} {[%emt 00:00:14]} 27. Nc5
{[%clk 00:51:32]} {[%emt 00:00:14]} Rxd5 {[%clk 00:32:54]} {[%emt 00:00:22]} 28.
Nxa6 {[%clk 00:51:58]} {[%emt 00:00:06]} Rb5 {[%clk 00:27:27]} {[%emt
00:05:56]} 29. Nc7 {[%clk 00:50:56]} {[%emt 00:01:33]} Rb7 {[%clk 00:27:33]}
{[%emt 00:00:24]} 30. Nd5 {[%clk 00:51:17]} {[%emt 00:00:08]} Kh7 {[%clk
00:24:04]} {[%emt 00:03:58]} 31. Nf4 {[%clk 00:51:09]} {[%emt 00:00:39]} Rxb3
{[%clk 00:22:38]} {[%emt 00:01:56]} 32. Nxh5 {[%clk 00:50:12]} {[%emt
00:01:28]} Bb7 {[%clk 00:22:04]} {[%emt 00:01:04]} 33. Re1 {[%clk 00:48:21]}
{[%emt 00:02:19]} Rb4 {[%clk 00:19:20]} {[%emt 00:03:15]} 34. Ng3 {[%clk
00:47:36]} {[%emt 00:01:14]} g6 {[%clk 00:16:35]} {[%emt 00:03:16]} 35. f3
{[%clk 00:47:07]} {[%emt 00:00:59]} Kg7 {[%clk 00:15:37]} {[%emt 00:01:27]} 36.
Nf1 {[%clk 00:45:15]} {[%emt 00:02:23]} Rb2 {[%clk 00:14:59]} {[%emt 00:01:08]}
37. Ne3 {[%clk 00:45:20]} {[%emt 00:00:24]} Ba8 {[%clk 00:13:29]} {[%emt
00:02:01]} 38. Rd1 {[%clk 00:45:03]} {[%emt 00:00:46]} Re2 {[%clk 00:11:50]}
{[%emt 00:02:09]} 39. Nc4 {[%clk 00:44:59]} {[%emt 00:00:34]} Bc6 {[%clk
00:11:23]} {[%emt 00:00:58]} 40. Rd4 {[%clk 00:43:18]} {[%emt 00:02:09]} Ba4
{[%clk 00:08:07]} {[%emt 00:03:48]} 41. Nb6 {[%clk 00:42:16]} {[%emt 00:01:32]}
Bb3 {[%clk 00:06:36]} {[%emt 00:02:00]} 42. Nc8 {[%clk 00:41:20]} {[%emt
00:01:25]} Rc2 {[%clk 00:05:22]} {[%emt 00:01:46]} 43. Nd6 {[%clk 00:39:10]}
{[%emt 00:02:40]} Rc1+ {[%clk 00:01:05]} {[%emt 00:04:47]} 44. Kf2 {[%clk
00:38:20]} {[%emt 00:01:20]} Rd1 {[%clk 00:01:06]} {[%emt 00:00:28]} 45. Rxd1
{[%clk 00:38:34]} {[%emt 00:00:17]} Bxd1 {[%clk 00:01:29]} {[%emt 00:00:06]} 46.
h4 {[%clk 00:38:55]} {[%emt 00:00:09]} Ba4 {[%clk 00:01:07]} {[%emt 00:00:53]}
47. Ke3 {[%clk 00:38:46]} {[%emt 00:00:39]} Kf6 {[%clk 00:25:08]} {[%emt
00:06:26]} 48. Kf4 {[%clk 01:08:45]} {[%emt 00:00:34]} Bc2 {[%clk 00:23:30]}
{[%emt 00:02:08]} 49. Ne4+ {[%clk 01:06:52]} {[%emt 00:02:23]} Kg7 {[%clk
00:23:52]} {[%emt 00:00:07]} 50. Kg5 {[%clk 01:07:12]} {[%emt 00:00:10]} Bd3
{[%clk 00:23:57]} {[%emt 00:00:26]} 51. Nf6 {[%clk 01:07:33]} {[%emt 00:00:08]}
Be2 {[%clk 00:21:17]} {[%emt 00:03:11]} 52. f4 {[%clk 01:07:01]} {[%emt
00:01:01]} Bd3 {[%clk 00:21:01]} {[%emt 00:00:46]} 53. g3 {[%clk 01:07:20]}
{[%emt 00:00:09]} Bc2 {[%clk 00:21:20]} {[%emt 00:00:14]} 54. g4 {[%clk
01:07:29]} {[%emt 00:00:20]} Bb1 {[%clk 00:21:35]} {[%emt 00:00:16]} 55. Ne8+
{[%clk 01:05:15]} {[%emt 00:02:44]} Kf8 {[%clk 00:21:51]} {[%emt 00:00:14]} 56.
Nf6 {[%clk 01:05:39]} {[%emt 00:00:06]} Kg7 {[%clk 00:22:13]} {[%emt 00:00:07]}
57. f5 {[%clk 01:03:55]} {[%emt 00:02:16]} gxf5 {[%clk 00:22:29]} {[%emt
00:00:13]} 58. gxf5 {[%clk 01:04:18]} {[%emt 00:00:07]} Bc2 {[%clk 00:20:22]}
{[%emt 00:02:37]} 59. Ne8+ {[%clk 01:04:25]} {[%emt 00:00:23]} Kh7 {[%clk
00:19:21]} {[%emt 00:01:30]} 60. Nd6 {[%clk 01:04:07]} {[%emt 00:00:49]} f6+
{[%clk 00:16:53]} {[%emt 00:02:57]} 61. Kxf6 {[%clk 01:03:58]} {[%emt
00:00:40]} Kh6 {[%clk 00:17:13]} {[%emt 00:00:09]} 62. Ke7 {[%clk 00:55:43]}
{[%emt 00:08:45]} Kh5 {[%clk 00:17:10]} {[%emt 00:00:33]} 63. f6 {[%clk
00:56:10]} {[%emt 00:00:04]} Bg6 {[%clk 00:16:31]} {[%emt 00:01:08]} 64. Nf5
{[%clk 00:54:41]} {[%emt 00:02:00]} Kg4 {[%clk 00:16:49]} {[%emt 00:00:11]} 65.
Nh6+ {[%clk 00:54:14]} {[%emt 00:00:55]} Kxh4 {[%clk 00:15:29]} {[%emt
00:01:52]} 66. Kf8 {[%clk 00:54:37]} {[%emt 00:00:09]} Kg5 {[%clk 00:13:46]}
{[%emt 00:02:12]} 67. Kg7 {[%clk 00:55:02]} {[%emt 00:00:05]} Bh5 {[%clk
00:13:57]} {[%emt 00:00:18]} 68. Nf7+ {[%clk 00:55:30]} {[%emt 00:00:03]} Kf5
{[%clk 00:13:29]} {[%emt 00:00:57]} 69. Nd6+ {[%clk 00:55:56]} {[%emt
00:00:05]} Ke5 {[%clk 00:11:07]} {[%emt 00:02:51]} 70. Nc4+ {[%clk 00:56:14]}
{[%emt 00:00:11]} Kf4 {[%clk 00:09:08]} {[%emt 00:02:30]} 71. f7 {[%clk
00:56:33]} {[%emt 00:00:12]} Bxf7 {[%clk 00:09:31]} {[%emt 00:00:07]} 72. Nd6
{[%clk 00:56:59]} {[%emt 00:00:04]} Ba2 {[%emt 00:00:10]} 1/2-1/2

[Event "Schack-SM 2022: Sverigemastarklassen"]
[Site "Fyrishov, Idrottsgatan 2, Uppsala, Sweden"]
[Date "2022.07.08"]
[Round "7.5"]
[White "Smith, Axel"]
[Black "Blomqvist, Erik"]
[Result "1-0"]
[TimeControl "90 minutes for 40 moves + 30 minutes for the rest of the game + 30 seconds per move from move one."]
[WhiteTitle "GM"]
[BlackTitle "GM"]
[WhiteFideId "1707930"]
[BlackFideId "1709437"]
[WhiteElo "2417"]
[BlackElo "2521"]

1. c4 {[%clk 01:30:58]} {[%emt 00:00:01]} e5 {[%clk 01:30:42]} {[%emt
00:00:18]} 2. Nc3 {[%clk 01:31:26]} {[%emt 00:00:02]} Nf6 {[%clk 01:30:54]}
{[%emt 00:00:19]} 3. Nf3 {[%clk 01:31:54]} {[%emt 00:00:02]} e4 {[%clk
01:31:02]} {[%emt 00:00:22]} 4. Ng5 {[%clk 01:27:47]} {[%emt 00:04:36]} c6
{[%clk 01:31:09]} {[%emt 00:00:23]} 5. Ngxe4 {[%clk 01:26:18]} {[%emt
00:01:59]} Nxe4 {[%clk 01:30:46]} {[%emt 00:00:54]} 6. Nxe4 {[%clk 01:26:47]}
{[%emt 00:00:01]} d5 {[%clk 01:31:09]} {[%emt 00:00:07]} 7. Nc3 {[%clk
01:12:14]} {[%emt 00:15:03]} dxc4 {[%clk 01:23:18]} {[%emt 00:08:21]} 8. e3
{[%clk 01:11:40]} {[%emt 00:01:04]} Be6 {[%clk 01:23:30]} {[%emt 00:00:17]} 9.
d3 {[%clk 01:10:12]} {[%emt 00:01:58]} cxd3 {[%clk 01:23:34]} {[%emt 00:00:26]}
10. Bxd3 {[%clk 01:10:28]} {[%emt 00:00:14]} Nd7 {[%clk 01:22:36]} {[%emt
00:01:28]} 11. O-O {[%clk 01:09:42]} {[%emt 00:01:17]} g6 {[%clk 01:12:09]}
{[%emt 00:10:57]} 12. b3 {[%clk 01:01:38]} {[%emt 00:08:34]} Bg7 {[%clk
01:11:36]} {[%emt 00:01:02]} 13. Bb2 {[%clk 01:02:07]} {[%emt 00:00:02]} Nc5
{[%clk 01:04:44]} {[%emt 00:07:21]} 14. Na4 {[%clk 00:45:03]} {[%emt 00:17:35]}
Bxb2 {[%clk 01:03:48]} {[%emt 00:01:25]} 15. Nxb2 {[%clk 00:45:04]} {[%emt
00:00:28]} Qg5 {[%clk 01:00:55]} {[%emt 00:03:24]} 16. Bc4 {[%clk 00:34:24]}
{[%emt 00:11:11]} Rd8 {[%clk 00:54:10]} {[%emt 00:07:15]} 17. Qe2 {[%clk
00:34:44]} {[%emt 00:00:10]} Bf5 {[%clk 00:51:06]} {[%emt 00:03:34]} 18. Rfd1
{[%clk 00:31:16]} {[%emt 00:03:57]} O-O {[%clk 00:50:38]} {[%emt 00:00:58]} 19.
f3 {[%clk 00:23:18]} {[%emt 00:08:29]} a5 {[%clk 00:38:24]} {[%emt 00:12:43]}
20. Qf2 {[%clk 00:21:14]} {[%emt 00:02:34]} Bc8 {[%clk 00:34:58]} {[%emt
00:03:56]} 21. Rxd8 {[%clk 00:17:49]} {[%emt 00:03:55]} Rxd8 {[%clk 00:34:49]}
{[%emt 00:00:39]} 22. Rd1 {[%clk 00:18:13]} {[%emt 00:00:06]} Rxd1+ {[%clk
00:34:07]} {[%emt 00:01:13]} 23. Nxd1 {[%clk 00:18:41]} b5 {[%clk 00:29:02]}
{[%emt 00:05:35]} 24. Bf1 {[%clk 00:19:00]} {[%emt 00:00:10]} Qd8 {[%clk
00:27:08]} {[%emt 00:02:25]} 25. Qc2 {[%clk 00:18:08]} {[%emt 00:01:22]} Qd6
{[%clk 00:27:22]} {[%emt 00:00:15]} 26. Nf2 {[%clk 00:16:53]} {[%emt 00:01:45]}
Bf5 {[%clk 00:24:39]} {[%emt 00:03:14]} 27. Qb2 {[%clk 00:12:45]} {[%emt
00:04:38]} b4 {[%clk 00:21:55]} {[%emt 00:03:14]} 28. Bc4 {[%clk 00:12:12]}
{[%emt 00:01:04]} h5 {[%clk 00:20:32]} {[%emt 00:01:52]} 29. Qd4 {[%clk
00:06:21]} {[%emt 00:06:22]} Qxd4 {[%clk 00:16:43]} {[%emt 00:04:19]} 30. exd4
{[%clk 00:06:50]} {[%emt 00:00:01]} Nd7 {[%clk 00:17:05]} {[%emt 00:00:08]} 31.
Nd3 {[%clk 00:01:40]} {[%emt 00:05:40]} Kf8 {[%clk 00:14:42]} {[%emt 00:02:52]}
32. Kf2 {[%clk 00:02:09]} {[%emt 00:00:02]} Ke7 {[%clk 00:14:11]} {[%emt
00:01:00]} 33. Ke3 {[%clk 00:01:26]} {[%emt 00:01:14]} g5 {[%clk 00:11:11]}
{[%emt 00:03:30]} 34. Kd2 {[%clk 00:01:28]} {[%emt 00:00:28]} f6 {[%clk
00:08:16]} {[%emt 00:03:25]} 35. Nb2 {[%clk 00:01:09]} {[%emt 00:00:48]} c5
{[%clk 00:04:41]} {[%emt 00:04:05]} 36. Bd3 {[%clk 00:01:06]} {[%emt 00:00:34]}
Be6 {[%clk 00:04:17]} {[%emt 00:00:54]} 37. Ke3 {[%clk 00:01:28]} {[%emt
00:00:08]} Kd6 {[%clk 00:03:10]} {[%emt 00:01:37]} 38. Bc4 {[%clk 00:01:26]}
{[%emt 00:00:32]} Bf5 {[%clk 00:03:01]} {[%emt 00:00:38]} 39. Bd3 {[%clk
00:01:08]} {[%emt 00:00:48]} Bxd3 {[%clk 00:01:28]} {[%emt 00:02:04]} 40. Nxd3
{[%clk 00:00:35]} {[%emt 00:01:02]} f5 {[%clk 00:00:39]} {[%emt 00:01:19]} 41.
Nxc5 {[%clk 00:16:18]} {[%emt 00:14:47]} Nxc5 {[%clk 00:27:58]} {[%emt
00:03:12]} 42. dxc5+ {[%clk 00:16:46]} {[%emt 00:00:01]} Kxc5 {[%clk 00:28:14]}
{[%emt 00:00:14]} 43. h4 {[%clk 00:13:25]} {[%emt 00:03:52]} gxh4 {[%clk
00:28:33]} {[%emt 00:00:10]} 44. Kf4 {[%clk 00:08:56]} {[%emt 00:04:59]} Kd4
{[%clk 00:29:01]} {[%emt 00:00:02]} 45. Kxf5 {[%clk 00:09:20]} {[%emt
00:00:06]} Kc3 {[%clk 00:29:20]} {[%emt 00:00:10]} 46. f4 {[%clk 00:09:36]}
{[%emt 00:00:15]} Kb2 {[%clk 00:29:45]} {[%emt 00:00:05]} 47. Kg5 {[%clk
00:09:51]} {[%emt 00:00:15]} Kxa2 {[%clk 00:30:00]} {[%emt 00:00:16]} 48. f5
{[%clk 00:10:20]} a4 {[%clk 00:30:18]} {[%emt 00:00:12]} 49. bxa4 {[%clk
00:10:25]} {[%emt 00:00:26]} b3 {[%clk 00:30:45]} {[%emt 00:00:02]} 50. f6
{[%clk 00:10:48]} {[%emt 00:00:08]} b2 {[%clk 00:31:11]} {[%emt 00:00:04]} 51.
f7 {[%clk 00:11:16]} {[%emt 00:00:01]} b1=Q {[%emt 00:00:06]} 52. f8=Q {[%clk
00:11:43]} {[%emt 00:00:02]} Qe4 {[%clk 00:26:01]} {[%emt 00:06:04]} 53. Qf2+
{[%clk 00:09:46]} {[%emt 00:02:29]} Kb3 {[%clk 00:25:50]} {[%emt 00:00:40]} 54.
Kxh5 {[%clk 00:09:52]} {[%emt 00:00:24]} h3 {[%clk 00:17:21]} {[%emt 00:09:00]}
55. Qg3+ {[%clk 00:06:23]} {[%emt 00:03:58]} Kxa4 {[%clk 00:17:43]} {[%emt
00:00:07]} 56. Qxh3 {[%clk 00:06:44]} {[%emt 00:00:09]} Qh7+ {[%clk 00:17:03]}
{[%emt 00:01:10]} 57. Kg5 {[%clk 00:07:02]} {[%emt 00:00:13]} Qg7+ {[%clk
00:17:11]} {[%emt 00:00:22]} 58. Kf5 {[%clk 00:07:20]} {[%emt 00:00:10]} Qf7+
{[%clk 00:17:30]} {[%emt 00:00:13]} 59. Ke5 {[%clk 00:07:07]} {[%emt 00:00:43]}
Qg7+ {[%clk 00:17:31]} {[%emt 00:00:29]} 60. Ke4 {[%clk 00:07:23]} {[%emt
00:00:15]} Qg6 {[%clk 00:17:31]} {[%emt 00:00:29]} 61. Ke3 {[%clk 00:07:44]}
{[%emt 00:00:10]} Qg5+ {[%clk 00:16:27]} {[%emt 00:01:33]} 62. Ke2 {[%clk
00:07:46]} {[%emt 00:00:28]} Kb5 {[%clk 00:11:22]} {[%emt 00:05:35]} 63. Qb3+
{[%clk 00:06:48]} {[%emt 00:01:28]} Kc6 {[%clk 00:11:34]} {[%emt 00:00:18]} 64.
Qe6+ {[%clk 00:06:06]} {[%emt 00:01:13]} Kc7 {[%clk 00:11:57]} {[%emt
00:00:06]} 65. Kf3 {[%clk 00:05:07]} {[%emt 00:01:29]} Kd8 {[%clk 00:07:46]}
{[%emt 00:04:42]} 66. g3 {[%clk 00:05:36]} Qh5+ {[%clk 00:04:08]} {[%emt
00:04:07]} 67. g4 {[%clk 00:03:50]} {[%emt 00:02:16]} Qg5 {[%clk 00:00:37]}
{[%emt 00:04:01]} 68. Ke4 {[%clk 00:04:06]} {[%emt 00:00:15]} Qc5 {[%clk
00:00:36]} {[%emt 00:00:31]} 69. Kf4 {[%clk 00:03:58]} {[%emt 00:00:38]} Qf8+
{[%clk 00:00:41]} {[%emt 00:00:24]} 70. Kg5 {[%clk 00:03:47]} {[%emt 00:00:40]}
Qg7+ {[%clk 00:01:07]} {[%emt 00:00:05]} 71. Kh5 {[%clk 00:03:58]} {[%emt
00:00:19]} Qh7+ {[%clk 00:01:09]} {[%emt 00:00:28]} 72. Qh6 {[%clk 00:04:05]}
{[%emt 00:00:23]} Qf7+ {[%clk 00:01:25]} {[%emt 00:00:14]} 73. Qg6 {[%clk
00:04:30]} {[%emt 00:00:06]} Qf3 {[%clk 00:01:36]} {[%emt 00:00:17]} 74. Qe6
{[%clk 00:04:04]} {[%emt 00:00:57]} Qd3 {[%clk 00:00:32]} {[%emt 00:01:34]} 75.
Kh6 {[%clk 00:04:12]} {[%emt 00:00:22]} Qh3+ {[%clk 00:00:36]} {[%emt
00:00:25]} 76. Kg7 {[%clk 00:04:23]} {[%emt 00:00:20]} Qg3 {[%clk 00:00:47]}
{[%emt 00:00:18]} 77. Kf7 {[%clk 00:03:29]} {[%emt 00:01:25]} Qc7+ {[%clk
00:00:58]} {[%emt 00:00:20]} 78. Kg6 {[%clk 00:03:46]} {[%emt 00:00:12]} Qc2+
{[%clk 00:01:12]} {[%emt 00:00:16]} 79. Kg7 {[%clk 00:03:08]} {[%emt 00:01:08]}
Qc5 {[%clk 00:00:39]} {[%emt 00:01:03]} 80. Qf6+ {[%clk 00:02:36]} {[%emt
00:01:02]} Kc7 {[%clk 00:00:53]} {[%emt 00:00:16]} 81. g5 {[%clk 00:02:49]}
{[%emt 00:00:17]} Qe3 {[%clk 00:00:36]} {[%emt 00:00:46]} 82. g6 {[%clk
00:03:11]} {[%emt 00:00:09]} Kd7 {[%clk 00:00:54]} {[%emt 00:00:13]} 83. Kh7
{[%clk 00:03:10]} {[%emt 00:00:31]} Qe4 {[%clk 00:00:41]} {[%emt 00:00:42]} 84.
Qf7+ {[%clk 00:02:12]} {[%emt 00:01:29]} Kd8 {[%clk 00:00:47]} {[%emt
00:00:23]} 85. Kg8 {[%clk 00:02:23]} {[%emt 00:00:19]} Qh4 {[%clk 00:00:38]}
{[%emt 00:00:36]} 86. Qe6 {[%clk 00:02:12]} {[%emt 00:00:44]} Qh6 {[%clk
00:00:44]} {[%emt 00:00:22]} 87. Qf6+ {[%clk 00:02:05]} {[%emt 00:00:39]} 1-0

[Event "Schack-SM 2022: Sverigemastarklassen"]
[Site "Fyrishov, Idrottsgatan 2, Uppsala, Sweden"]
[Date "2022.07.08"]
[Round "7.1"]
[White "Jogstad, Martin"]
[Black "Cramling, Pia"]
[Result "0-1"]
[TimeControl "90 minutes for 40 moves + 30 minutes for the rest of the game + 30 seconds per move from move one."]
[WhiteTitle "FM"]
[BlackTitle "GM"]
[WhiteFideId "1715364"]
[BlackFideId "1700030"]
[WhiteElo "2384"]
[BlackElo "2459"]

1. Nf3 {[%clk 01:30:11]} {[%emt 00:00:48]} c5 {[%clk 01:27:44]} {[%emt
00:03:17]} 2. c4 {[%clk 01:30:27]} {[%emt 00:00:14]} Nf6 {[%clk 01:26:31]}
{[%emt 00:01:44]} 3. g3 {[%clk 01:30:46]} {[%emt 00:00:10]} d5 {[%clk
01:18:52]} {[%emt 00:08:09]} 4. cxd5 {[%clk 01:31:10]} {[%emt 00:00:07]} Nxd5
{[%clk 01:19:20]} {[%emt 00:00:02]} 5. Nc3 {[%clk 01:31:26]} {[%emt 00:00:13]}
Nc6 {[%clk 01:18:52]} {[%emt 00:00:58]} 6. Bg2 {[%clk 01:31:32]} {[%emt
00:00:24]} Nc7 {[%clk 01:19:11]} {[%emt 00:00:11]} 7. d3 {[%clk 01:29:25]}
{[%emt 00:02:37]} e5 {[%clk 01:16:08]} {[%emt 00:03:33]} 8. Be3 {[%clk
01:26:29]} {[%emt 00:03:26]} Be7 {[%clk 01:03:14]} {[%emt 00:13:23]} 9. Rc1
{[%clk 01:23:50]} {[%emt 00:03:10]} Bd7 {[%clk 00:54:48]} {[%emt 00:08:56]} 10.
Nd2 {[%clk 01:13:14]} {[%emt 00:11:06]} Rb8 {[%clk 00:47:59]} {[%emt 00:07:19]}
11. O-O {[%clk 01:09:51]} {[%emt 00:03:50]} O-O {[%clk 00:46:44]} {[%emt
00:01:48]} 12. Nc4 {[%clk 01:00:49]} {[%emt 00:09:32]} f6 {[%clk 00:35:42]}
{[%emt 00:11:32]} 13. Ne4 {[%clk 00:50:00]} {[%emt 00:11:19]} Nd4 {[%clk
00:34:03]} {[%emt 00:02:10]} 14. f4 {[%clk 00:35:15]} {[%emt 00:15:15]} Bg4
{[%clk 00:30:55]} {[%emt 00:03:37]} 15. Rf2 {[%clk 00:27:21]} {[%emt 00:08:25]}
b5 {[%clk 00:26:37]} {[%emt 00:04:47]} 16. Na5 {[%clk 00:26:25]} {[%emt
00:01:26]} Nce6 {[%clk 00:26:11]} {[%emt 00:00:56]} 17. Qd2 {[%clk 00:14:00]}
{[%emt 00:12:56]} Rc8 {[%clk 00:22:20]} {[%emt 00:04:20]} 18. Kf1 {[%clk
00:01:59]} {[%emt 00:12:32]} f5 {[%clk 00:18:14]} {[%emt 00:04:35]} 19. Ng5
{[%clk 00:00:57]} {[%emt 00:01:32]} Bxg5 {[%clk 00:17:42]} {[%emt 00:01:03]} 20.
fxg5 {[%clk 00:01:05]} {[%emt 00:00:22]} f4 {[%clk 00:17:55]} {[%emt 00:00:16]}
21. gxf4 {[%clk 00:01:20]} {[%emt 00:00:15]} exf4 {[%clk 00:17:56]} {[%emt
00:00:28]} 22. Bxd4 {[%clk 00:01:24]} {[%emt 00:00:27]} Nxd4 {[%clk 00:18:13]}
{[%emt 00:00:12]} 23. Nb7 {[%clk 00:00:34]} {[%emt 00:01:22]} Qe7 {[%clk
00:14:17]} {[%emt 00:04:25]} 24. Be4 {[%clk 00:00:45]} {[%emt 00:00:20]} Qxg5
{[%clk 00:13:32]} {[%emt 00:01:14]} 25. Nd6 {[%clk 00:00:43]} {[%emt 00:00:33]}
Rcd8 {[%clk 00:11:22]} {[%emt 00:02:39]} 26. Nb7 {[%clk 00:01:11]} {[%emt
00:00:03]} Rd5 {[%clk 00:10:05]} {[%emt 00:01:46]} 27. b4 {[%clk 00:01:02]}
{[%emt 00:00:40]} cxb4 {[%clk 00:04:39]} {[%emt 00:05:55]} 28. Qxb4 {[%clk
00:01:13]} {[%emt 00:00:20]} Bh3+ {[%clk 00:04:10]} {[%emt 00:00:57]} 29. Ke1
{[%clk 00:01:37]} {[%emt 00:00:07]} Rd7 {[%clk 00:04:23]} {[%emt 00:00:15]} 30.
Kd2 {[%clk 00:00:47]} {[%emt 00:01:23]} Qh4 {[%clk 00:03:01]} {[%emt 00:01:50]}
31. Ke1 {[%clk 00:00:48]} {[%emt 00:00:31]} Qg5 {[%clk 00:02:14]} {[%emt
00:01:16]} 32. Kd2 {[%clk 00:00:48]} {[%emt 00:00:30]} Bf5 {[%clk 00:02:09]}
{[%emt 00:00:34]} 33. Rc5 {[%clk 00:00:33]} {[%emt 00:00:47]} f3+ {[%clk
00:02:10]} {[%emt 00:00:28]} 34. e3 {[%clk 00:00:33]} {[%emt 00:00:31]} Qg1
{[%clk 00:02:26]} {[%emt 00:00:13]} 35. exd4 {[%clk 00:00:32]} {[%emt
00:00:32]} Qxf2+ {[%clk 00:02:49]} {[%emt 00:00:06]} 36. Kc1 {[%clk 00:00:32]}
{[%emt 00:00:31]} Bxe4 {[%clk 00:02:57]} {[%emt 00:00:21]} 37. dxe4 {[%clk
00:00:34]} {[%emt 00:00:28]} Qe3+ {[%clk 00:02:56]} {[%emt 00:00:30]} 38. Kb1
{[%clk 00:00:41]} {[%emt 00:00:24]} Qxe4+ {[%clk 00:03:13]} {[%emt 00:00:13]}
39. Kc1 {[%clk 00:00:52]} {[%emt 00:00:19]} f2 {[%clk 00:02:49]} {[%emt
00:00:54]} 0-1